Cogmind - Beta 15 *** ADVENTURER MODE // 2025.05.21 @ 23:49:14 Player: Seralth Result: Destroyed by G-47 Trooper with Particle Gun Performance ------------- Evolutions (0) 0 Regions Visited (1) 200 Robots Destroyed (4) 20 Value Destroyed (101) 101 Prototype IDs (0) 0 Alien Tech Used (0) 0 Bonus (0) 0 TOTAL SCORE: 321 Bonus ------- None Cogmind --------- Core Integrity 0/250 Matter 206/300 Energy 100/100 System Corruption 0% Temperature Cool (9) Movement Core (1450) Ox28 Location -10/Materials Parts ------- > --- POWER (1) -------- (None) > --- PROPULSION (2) --- (None) > --- UTILITY (2) ------ Small Storage Unit Huge Storage Unit > --- WEAPON (2) ------- (None) > --- INVENTORY (25) --- (None) Peak State ------------ > --- POWER ------------ Light Ion Engine > --- PROPULSION ------- Light Treads Light Treads > --- UTILITY ---------- Small Storage Unit Huge Storage Unit > --- WEAPON ----------- Assault Rifle Assault Rifle > --- INVENTORY -------- (None) [Rating: 7] Favorites ----------- Power Light Ion Engine Engine Light Ion Engine Propulsion Light Treads Treads Light Treads Leg Aluminum Leg Wheel Wheel Flight Unit Flight Unit Utility Small Storage Unit Storage Small Storage Unit Weapon Assault Rifle Energy Gun EM Pulse Gun Ballistic Gun Assault Rifle Build | -11 -10 ------- Run | Yrd Mat Slots Evolved . | . . Power . | . . Propulsion . | . . Utility . | . . Weapon . | . . Parts Attached 12 | 10 2 Power 2 | 2 . Engine 2 | 2 . Core . | . . Reactor . | . . Propulsion 5 | 4 1 Treads 2 | 2 . Leg 1 | 1 . Wheel 1 | 1 . Hover . | . . Flight 1 | . 1 Utility 2 | 1 1 Device . | . . Storage 2 | 1 1 Processor . | . . Hackware . | . . Protection . | . . Artifact . | . . Weapon 3 | 3 . Energy Gun 1 | 1 . Energy Cannon . | . . Ballistic Gun 2 | 2 . Ballistic Cannon . | . . Launcher . | . . Special Weapon . | . . Impact Weapon . | . . Slashing Weapon . | . . Piercing Weapon . | . . Special Melee Weapon . | . . Unidentified Prototypes . | . . Parts Lost 5 | . 5 Power 1 | . 1 Propulsion 2 | . 2 Utility . | . . Weapon 2 | . 2 Highest Loss Streak 5 | . 5 To Critical Strikes . | . . Average Backups . | . . Power . | . . Propulsion . | . . Utility . | . . Weapon . | . . Tool/Special . | . . Unused Backups . | . . Power . | . . Propulsion . | . . Utility . | . . Weapon . | . . Tool/Special . | . . Average Slot Usage (%) 82 | . 82 Engine 10 | . 10 Treads 16 | . 16 Flight 8 | . 8 Storage 25 | . 25 Ballistic Gun 22 | . 22 Peak Build Rating 7 | 6 7 Average Rating 5 | 5 5 On Entrance 3 | . 6 Naked Turns . | . . Heaviest Build 92 | 14 92 Greatest Support 40 | 3 40 Greatest Overweight (x) 28 | 4 28 Average Overweight (x) 3 | 2 9 Largest Inventory Capacity 25 | 8 25 Average Capacity 11 | 7 22 Most Carried . | . . Average Carried . | . . Final Capacity 25 | 8 25 Final Carried . | . . Class Distribution -------------------- 100% | Mutant Dominant Class ---------------- Mutant | -10/Materials Resources | -11 -10 ----------- Run | Yrd Mat Matter Collected 259 | 209 50 Remotely . | . . Salvage Created 134 | . 134 Parts 6 | . 6 Haulers Intercepted . | . . Recyclers Shooed 1 | . 1 Parts Field Recycled . | . . Retrieved Matter . | . . Parts Self-Destructed . | . . Prevented . | . . Kills | -11 -10 ------- Run | Yrd Mat Combat Hostiles Destroyed 4 | . 4 Guns 4 | . 4 Classes Destroyed 2 | . 2 Swarmer 2 | . 2 Grunt 2 | . 2 Best Kill Streak 2 | . 2 Combat Bots Only 2 | . 2 Max Kills in Single Turn 1 | . 1 Gunslinging . | . . Exploded . | . . Melee . | . . Uniques/NPCs Destroyed . | . . Combat | -11 -10 -------- Run | Yrd Mat Hostile Shots Fired 137 | . 137 Missed 50 | . 50 Hits 87 | . 87 Projectile 87 | . 87 Critical Strikes 2 | . 2 Damage Taken 838 | . 838 Core 261 | . 261 Absorbed by Shields . | . . Ignored by Resistances 255 | . 255 Core Remaining (%) 100 | 100 . Volleys Fired 10 | . 10 Largest 2 | . 2 Hottest 40 | . 40 Shots Fired 20 | . 20 Gun 20 | . 20 Cannon . | . . Launcher . | . . Special . | . . Kinetic 20 | . 20 Thermal . | . . Explosive . | . . Electromagnetic . | . . Robot Hit Streak 7 | . 7 Robot Miss Streak 1 | . 1 Penetration Max . | . . Secondary Targets 2 | . 2 Max Gunslinging Chain 1 | . 1 Shots Hit Robots 17 | . 17 Core Hits 6 | . 6 Critical Kills . | . . Critical Parts Destroyed . | . . Critical Strikes . | . . Melee Attacks . | . . Impact . | . . Slashing . | . . Piercing . | . . Sneak Attacks . | . . Combat Hostiles . | . . Follow-up Attacks . | . . Damage Inflicted 221 | . 221 Guns 221 | . 221 Cannons . | . . Explosions . | . . Melee . | . . Ramming . | . . Kinetic 221 | . 221 Thermal . | . . Explosive . | . . Electromagnetic . | . . Impact . | . . Slashing . | . . Piercing . | . . Highest Corruption . | . . Average Corruption . | . . Corruption Purged . | . . Corruption Blocked . | . . Overload Shots . | . . Overflow Damage . | . . Projectiles . | . . Explosions . | . . Melee . | . . Knockbacks . | . . Impact . | . . Kinetic . | . . Secondary . | . . Self-Inflicted Damage . | . . Shots . | . . Rammed 1 | 1 . Targets Rammed 1 | 1 . Kicked . | . . Crushed . | . . Highest Temperature 9 | . 9 Average Temperature 5 | . 5 Received Heat Transfer 603 | . 603 Siege Activations . | . . Martial Activations . | . . Shielding Activations . | . . Robots Disrupted . | . . Combat Hostiles . | . . Robots Corrupted . | . . Combat Hostiles . | . . Parts Fried . | . . Impact Corruptions . | . . Robots Melted . | . . Combat Hostiles . | . . Parts Melted . | . . Heat Transferred . | . . Parts Sabotaged . | . . Parts Stolen . | . . Parts Stripped . | . . Power Chain Reactions . | . . Alert | -11 -10 ------- Run | Yrd Mat Maximum Alert Level . | . . Low Security (%) 100 | 100 100 Level 1 . | . . Level 2 . | . . Level 3 . | . . Level 4 . | . . Level 5 . | . . High Security . | . . Max Security . | . . Peak Influence 50 | . 50 Initial . | . . Average 3 | . 13 Influence Increases 100 | . 100 Destroy 0b10 Robot/C 80 | . 80 Destroy Leader 20 | . 20 Influence Decreases 100 | . 100 Time Decay 80 | . 80 Lost Part 20 | . 20 Squads Dispatched . | . . Investigation . | . . Extermination . | . . Reinforcement . | . . Assault . | . . Garrison . | . . Intercept . | . . Searches Triggered . | . . Construction Impeded . | . . Haulers Reinforced . | . . Active Scanning Responses . | . . Cargo Convoy Interrupts . | . . Stealth | -11 -10 --------- Run | Yrd Mat Distress Signals 1 | . 1 Communications Jammed . | . . Distress Signals . | . . Times Spotted 10 | . 10 Peak Tracking Total 5 | . 5 Tactical Retreats . | . . Traps | -11 -10 ------- Run | Yrd Mat Traps Triggered . | . . Indirectly . | . . Trap Hack Attempts . | . . Triggered . | . . Disarmed . | . . Reprogrammed . | . . Reused . | . . Traps Extracted . | . . Installed . | . . Triggered . | . . Machines | -11 -10 ---------- Run | Yrd Mat Machines Disabled . | . . Max in Single Turn . | . . Machines Repaired . | . . Machines Dismantled . | . . Machines Sabotaged . | . . Overloaded Fab Kills . | . . Hacking | -11 -10 --------- Run | Yrd Mat Machines Accessed . | . . Terminals . | . . Fabricators . | . . Repair Stations . | . . Recycling Units . | . . Scanalyzers . | . . Garrison Access . | . . Total Hacks . | . . Successful . | . . Failed . | . . Catastrophic . | . . Database Lockouts . | . . Manual . | . . Terminals . | . . Fabricators . | . . Repair Stations . | . . Recycling Units . | . . Scanalyzers . | . . Garrison Access . | . . Terminal Hacks . | . . Fabricator Hacks . | . . Repair Station Hacks . | . . Recycling Unit Hacks . | . . Scanalyzer . | . . Garrison Access Hacks . | . . Unauthorized Hacks . | . . Terminals . | . . Fabricators . | . . Repair Stations . | . . Recycling Units . | . . Scanalyzers . | . . Garrison Access . | . . Data Cores Recovered . | . . Used . | . . Hacking Detections . | . . Full Trace Events . | . . Feedback Events . | . . Feedback Blocked . | . . Robot Schematics Acquired . | . . Robots Built . | . . Authchips . | . . Time . | . . Total Robot Build Rating . | . . Part Schematics Acquired . | . . Parts Built . | . . Authchips . | . . Time . | . . Total Part Build Rating . | . . Parts Repaired . | . . Time . | . . Parts Recycled . | . . Recycled Matter . | . . Retrieved Matter . | . . Retrieved Components . | . . Parts Scanalyzed . | . . Part Schematics Acquired . | . . Parts Damaged . | . . Bothacking | -11 -10 ------------ Run | Yrd Mat Used RIF Installer . | . . Robots Hacked . | . . Non-combat . | . . Combat . | . . Robot Hacks Applied . | . . Relay Couplers Released . | . . Fabnet Peak Effective % . | . . Robots Rewired . | . . Allies Hacked . | . . Hacks Repelled . | . . Allies | -11 -10 -------- Run | Yrd Mat Total Allies . | . . Largest Group . | . . Highest-Rated Group . | . . Highest-Rated Ally . | . . Total Orders . | . . Ally Attacks . | . . Total Damage . | . . Kills . | . . Allies Corrupted . | . . Allies Melted . | . . Intel | -11 -10 ------- Run | Yrd Mat Active Infowar (turns) . | . . Robot Analysis Total . | . . Derelict Logs Recovered . | . . Drone Launches . | . . Drone Recoveries . | . . Exploration | -11 -10 ------------- Run | Yrd Mat Turns Passed 990 | 727 263 Spaces Moved 391 | 360 31 Core 371 | 360 11 Treads 11 | . 11 Legs . | . . Wheels . | . . Hover . | . . Flight 9 | . 9 Fastest Speed 50 | 50 160 Average Speed 233 | 188 749 Slowest Speed 1820 | 250 1820 Overloaded Moves . | . . Propulsion Burnouts . | . . Robots Hopped . | . . Potential Cave-ins . | . . Cave-ins Triggered . | . . Exploration Rate (%) 18 | 28 8 Regions Visited 1 Branch Regions . Pre-discovered Areas . | . . Known Exits Taken . | . . Unknown Exits Taken 1 | 1 . Scrap Searched . | . . Spaces Dug . | . . Terrain Destroyed . | . . Melee . | . . Projectile . | . . AOE . | . . Terrain Rammed . | . . Walls Destroyed . | . . Machines Disabled . | . . Actions | -11 -10 --------- Run | Yrd Mat Total 445 | 402 43 Wait 32 | 32 . Move 390 | 359 31 Hop . | . . Pick Up . | . . Fast Attach 7 | 6 1 Attach . | . . Detach . | . . Swap 5 | 4 1 Drop . | . . Fire 10 | . 10 Melee . | . . Ram 1 | 1 . Kick . | . . Crush . | . . Escape Stasis . | . . Rewire . | . . Trap . | . . Miscellaneous . | . . Route ------- -11/Scrapyard -10/Materials History --------- Turn | Location | Event 19 | -11/Scrapyard | Discovered new exit (range 16) 728 | -11/Scrapyard | Entered Materials 729 | -10/Materials | Build established: Mutant 968 | -10/Materials | Core integrity fell below 50% 982 | -10/Materials | Core integrity fell below 20% 991 | -10/Materials | Destroyed by G-47 Trooper with Particle Gun Last Messages --------------- 00892_ R-06 Scavenger collects Aluminum Leg. 00894_ K-01 Serf destroyed. 00899_ R-06 Scavenger collects Med. Matter Pod. 00900_ W-16 Scout distress signal alerts nearby ally. 00902_ R-06 Scavenger collects Wheel. 00905_ Critical hit (Burn: +37). 00906_ R-06 Scavenger collects Lgt. Ion Engine. 00908_ G-34 Mercenary destroyed. 00908_ Switching to secondary target: G-47 Trooper. 00912_ K-01 Serf collects debris. 00929_ Lgt. Ion Engine destroyed. 00931_ Assault Rifle destroyed. 00948_ Flight Unit destroyed. 00955_ Critical hit (Burn: +37). 00964_ Lgt. Treads destroyed. 00969_ R-06 Scavenger collects Sml. Laser. 00974_ K-01 Serf collects debris. [Achievement: First Step to Greatness] Map ----- +----------------------------------------------------+ | ????????????????????????????????????????? | | ????????????????????????????????????????? | | ????????????????????????????????????????? | | ????????????????????????????????????????? | | ????????????????????????????????????????? | | ????????????????????????????????????????? | | ????????????????????????????????????????? | | ????????????????????????????????????????? | | ????????????????????????????????????????? | | ????????????????????????????????????????? | | ???????????????????????? ????????????? | | ???????????????????????? ????????????? | | ???????????????????????? ????????????? | | ???????????????????????# ????????????? | | ???????????????????????# #????????????? | | ???????????????????????+ #????????????? | | ??????????????????#????# #????????????? | | ?????????????# ??# ???# #????????????? | | ????????????## ?# ???# #????????????? | | ????????????? ##+#### #????????????? | | ?????????????? ^ +????????????? | | ????????????? ^ g #????????????? | | ?????????????? " g #????????????? | | ?????????????? ^ ""u #????????????? | | ?????????????? "" #????????????? | | ?????????????? """ @ #????????????? | | ??????????????^ "" % #????????????? | | ?????????????? ^""" % #????????????? | | ??????????? """ #????????????? | | ??????????#! """ #########????? | | ?????????????# " ! k #????? | | ?????????????# !! % #????? | | ?????????????# !! #????? | | ?????????????####+#############+####????? | | ???????????????????????????????? ??????? | | ?????????????????????????????????"""????? | | ???????????????????????????????????"????? | | ????????????????????????????????????????? | | ????????????????????????????????????????? | | ????????????????????????????????????????? | | ????????????????????????????????????????? | | ????????????????????????????????????????? | | ????????????????????????????????????????? | | ????????????????????????????????????????? | | ????????????????????????????????????????? | | ????????????????????????????????????????? | | ????????????????????????????????????????? | | ????????????????????????????????????????? | | ????????????????????????????????????????? | | ????????????????????????????????????????? | +----------------------------------------------------+ Best States ------------- Heat Dissipation 25 Energy Generation 10 Energy Capacity 250 Matter Stores 237 Matter Capacity 300 Sight Range 16 Terrain Scan Density 10 Resistance: KI 20 Resistance: TH 20 Resistance: EX 20 Resistance: EM 20 Resistance: I 20 Resistance: S 20 Resistance: P 20 Evasion (%) 50 Recoil Reduction 2 Offensive Hacking 10 Item Schematics ----------------- None Robot Schematics ------------------ None Fabricated ------------ Nothing Repaired ---------- Nothing Alien Tech Used ----------------- None Achievements -------------- First Step to Greatness Challenges ------------ None Game ------ Seed WeldingDeuteriumRipper Manual? 0 Play Time 00:11:04 Cumulative 1.1 hours Start 2025.05.21 @ 23:39:23 End 2025.05.21 @ 23:49:14 Sessions 1 Manual Loads 0 Difficulty Adventurer Special Mode None Game No. 4 Rogue 3 Adventurer 1 Explorer 0 Win Type - Total 0 Types 0/0/0/0/0/0/0/0/0/0 Lore% 0 Gallery% 2 Achievement% 0 Wizard Run 0 Options --------- Layout 1 ASCII 0 Keyboard 0 Movement Numpad Keybinds 0 Fullscreen 1 Font 32/SmallcapsGlow Map View 25x20 Zoom Use 48% Tactical HUD 1 Map Filters NONE Filters NONE Steam 1 RUN: 293f5acf-d7d7-4b50-8b9e-baf9c3c1580e